[Event "Early-Titled-Tuesday-Blitz-August-29-2023"]
[Site "Chess.com"]
[Date "2023.08.29"]
[Round "11"]
[White "parintele_chess"]
[Black "YellowJacek"]
[Result "1/2-1/2"]
[WhiteElo "2232"]
[BlackElo "2338"]
[TimeControl "180+1"]
[EndTime "10:03:40 PDT"]
[Termination "Game drawn - insufficient material"]

1. d4 {[%clk 0:03:00.9]} 1... d5 {[%clk 0:02:53.7]} 2. c4 {[%clk 0:02:59.4]}
2... Nf6 {[%clk 0:02:51.9]} 3. cxd5 {[%clk 0:02:59]} 3... g6 {[%clk 0:02:52.3]}
4. Nc3 {[%clk 0:02:57.8]} 4... Bg7 {[%clk 0:02:52.4]} 5. e4 {[%clk 0:02:57]}
5... O-O {[%clk 0:02:48.4]} 6. Nf3 {[%clk 0:02:50.8]} 6... c6 {[%clk 0:02:46.1]}
7. dxc6 {[%clk 0:02:47.6]} 7... Nxc6 {[%clk 0:02:45.5]} 8. Be2 {[%clk 0:02:45]}
8... Bg4 {[%clk 0:02:44.4]} 9. d5 {[%clk 0:02:42.6]} 9... Bxf3 {[%clk
0:02:41.1]} 10. Bxf3 {[%clk 0:02:40]} 10... Ne5 {[%clk 0:02:40.9]} 11. O-O
{[%clk 0:02:38.2]} 11... Nxf3+ {[%clk 0:02:40.1]} 12. Qxf3 {[%clk 0:02:39.1]}
12... Qb6 {[%clk 0:02:37.4]} 13. Rb1 {[%clk 0:02:22.6]} 13... Rac8 {[%clk
0:02:34.8]} 14. Be3 {[%clk 0:02:22.1]} 14... Qa5 {[%clk 0:02:27.8]} 15. Rfc1
{[%clk 0:01:59.5]} 15... Nd7 {[%clk 0:02:22.6]} 16. Qe2 {[%clk 0:01:50.8]} 16...
Ne5 {[%clk 0:02:16.4]} 17. Qb5 {[%clk 0:01:28]} 17... Qxb5 {[%clk 0:02:15]} 18.
Nxb5 {[%clk 0:01:28.5]} 18... a6 {[%clk 0:02:15.9]} 19. Nc3 {[%clk 0:01:12.4]}
19... Nd3 {[%clk 0:02:14.9]} 20. Rd1 {[%clk 0:01:08.5]} 20... Nc5 {[%clk
0:01:51.9]} 21. f3 {[%clk 0:01:03.2]} 21... b5 {[%clk 0:01:50.9]} 22. Rbc1
{[%clk 0:00:59.1]} 22... Nd7 {[%clk 0:01:42.3]} 23. Bd4 {[%clk 0:00:43.7]} 23...
Bxd4+ {[%clk 0:01:32.1]} 24. Rxd4 {[%clk 0:00:44.6]} 24... Ne5 {[%clk
0:01:30.6]} 25. Rdd1 {[%clk 0:00:33.9]} 25... Rc7 {[%clk 0:01:23.4]} 26. Ne2
{[%clk 0:00:30.7]} 26... Rfc8 {[%clk 0:01:22.6]} 27. Rxc7 {[%clk 0:00:28.4]}
27... Rxc7 {[%clk 0:01:23.5]} 28. Rc1 {[%clk 0:00:28.4]} 28... Rxc1+ {[%clk
0:01:13.7]} 29. Nxc1 {[%clk 0:00:29.3]} 29... Kf8 {[%clk 0:01:08.9]} 30. Kf2
{[%clk 0:00:27.6]} 30... Ke8 {[%clk 0:01:09.1]} 31. b3 {[%clk 0:00:25.6]} 31...
Kd7 {[%clk 0:01:09.1]} 32. Ke3 {[%clk 0:00:25.7]} 32... g5 {[%clk 0:01:08]} 33.
Kd4 {[%clk 0:00:21.8]} 33... Ng6 {[%clk 0:01:05.1]} 34. g3 {[%clk 0:00:20.1]}
34... Kd6 {[%clk 0:01:02.7]} 35. Nd3 {[%clk 0:00:19.3]} 35... h5 {[%clk
0:01:00.6]} 36. e5+ {[%clk 0:00:17]} 36... Kc7 {[%clk 0:00:59.3]} 37. Kc5 {[%clk
0:00:16]} 37... h4 {[%clk 0:00:58.7]} 38. f4 {[%clk 0:00:12.6]} 38... hxg3
{[%clk 0:00:58.1]} 39. hxg3 {[%clk 0:00:13.5]} 39... gxf4 {[%clk 0:00:58.9]} 40.
gxf4 {[%clk 0:00:14.2]} 40... Kb7 {[%clk 0:00:52.7]} 41. f5 {[%clk 0:00:13.9]}
41... Nf8 {[%clk 0:00:51.6]} 42. d6 {[%clk 0:00:13.6]} 42... Nd7+ {[%clk
0:00:51.5]} 43. Kd5 {[%clk 0:00:09.8]} 43... Nb6+ {[%clk 0:00:51.6]} 44. Ke4
{[%clk 0:00:08.3]} 44... exd6 {[%clk 0:00:51.8]} 45. exd6 {[%clk 0:00:09.2]}
45... Kc6 {[%clk 0:00:52.7]} 46. Ne5+ {[%clk 0:00:05]} 46... Kxd6 {[%clk
0:00:52.2]} 47. Nxf7+ {[%clk 0:00:05.5]} 47... Kc5 {[%clk 0:00:50.5]} 48. Ne5
{[%clk 0:00:05.1]} 48... Nc8 {[%clk 0:00:49.1]} 49. f6 {[%clk 0:00:04.4]} 49...
a5 {[%clk 0:00:47.9]} 50. Kf4 {[%clk 0:00:03.2]} 50... Nd6 {[%clk 0:00:48.1]}
51. f7 {[%clk 0:00:02.9]} 51... Nxf7 {[%clk 0:00:47.7]} 52. Nxf7 {[%clk
0:00:03.8]} 52... Kb4 {[%clk 0:00:48.3]} 53. Nd6 {[%clk 0:00:03.8]} 53... Ka3
{[%clk 0:00:46.2]} 54. Nxb5+ {[%clk 0:00:04]} 54... Kxa2 {[%clk 0:00:47.1]} 55.
Nd4 {[%clk 0:00:03.8]} 55... Ka3 {[%clk 0:00:47]} 56. Ke3 {[%clk 0:00:02.9]}
56... a4 {[%clk 0:00:47.3]} 57. bxa4 {[%clk 0:00:03.8]} 57... Kxa4 {[%clk
0:00:47.5]} 1/2-1/2

[Event "Early-Titled-Tuesday-Blitz-August-29-2023"]
[Site "Chess.com"]
[Date "2023.08.29"]
[Round "11"]
[White "crazy_m_attack"]
[Black "ExchangeAB"]
[Result "0-1"]
[WhiteElo "2334"]
[BlackElo "2456"]
[TimeControl "180+1"]
[EndTime "10:03:41 PDT"]
[Termination "ExchangeAB won on time"]

1. e4 {[%clk 0:03:00.9]} 1... c6 {[%clk 0:03:00]} 2. d4 {[%clk 0:02:59.7]} 2...
d5 {[%clk 0:03:00.9]} 3. Nc3 {[%clk 0:02:59.6]} 3... dxe4 {[%clk 0:03:00.6]} 4.
Nxe4 {[%clk 0:03:00.1]} 4... Bf5 {[%clk 0:03:01.3]} 5. Ng3 {[%clk 0:03:00]} 5...
Bg6 {[%clk 0:03:01.7]} 6. h4 {[%clk 0:03:00.5]} 6... h6 {[%clk 0:03:01.8]} 7. h5
{[%clk 0:03:00.3]} 7... Bh7 {[%clk 0:03:02.2]} 8. Nf3 {[%clk 0:03:01.2]} 8...
Nd7 {[%clk 0:03:01.1]} 9. Bd3 {[%clk 0:03:00.7]} 9... Bxd3 {[%clk 0:03:01.3]}
10. Qxd3 {[%clk 0:03:01.6]} 10... e6 {[%clk 0:03:01.8]} 11. Bf4 {[%clk 0:02:58]}
11... Qa5+ {[%clk 0:03:00.8]} 12. Bd2 {[%clk 0:02:54]} 12... Bb4 {[%clk
0:03:01]} 13. c3 {[%clk 0:02:41.2]} 13... Be7 {[%clk 0:03:01]} 14. a3 {[%clk
0:02:24.4]} 14... Ngf6 {[%clk 0:03:00.8]} 15. c4 {[%clk 0:02:22.8]} 15... Qc7
{[%clk 0:02:59.6]} 16. O-O-O {[%clk 0:01:53.5]} 16... O-O-O {[%clk 0:02:52.3]}
17. Qc2 {[%clk 0:01:42.6]} 17... Rhe8 {[%clk 0:02:37.5]} 18. Be3 {[%clk
0:01:42]} 18... Bf8 {[%clk 0:02:18.8]} 19. Ne2 {[%clk 0:01:25.4]} 19... Ng4
{[%clk 0:01:49]} 20. Nc3 {[%clk 0:01:13.5]} 20... Nxe3 {[%clk 0:01:48]} 21. fxe3
{[%clk 0:01:14.4]} 21... Nf6 {[%clk 0:01:39.5]} 22. Kb1 {[%clk 0:01:04.1]} 22...
a6 {[%clk 0:01:22.5]} 23. e4 {[%clk 0:00:58.3]} 23... c5 {[%clk 0:01:09.6]} 24.
d5 {[%clk 0:00:54.8]} 24... exd5 {[%clk 0:01:07.4]} 25. exd5 {[%clk 0:00:55.7]}
25... Bd6 {[%clk 0:01:05.6]} 26. Nh4 {[%clk 0:00:43.4]} 26... Be5 {[%clk
0:00:49.7]} 27. Nf5 {[%clk 0:00:35]} 27... Qd7 {[%clk 0:00:27.2]} 28. Na4 {[%clk
0:00:20.6]} 28... Qc7 {[%clk 0:00:22.1]} 29. Nxg7 {[%clk 0:00:13.2]} 29... Rg8
{[%clk 0:00:21.8]} 30. Nf5 {[%clk 0:00:13.8]} 30... Ne8 {[%clk 0:00:14]} 31.
Rhe1 {[%clk 0:00:10.2]} 31... f6 {[%clk 0:00:14.1]} 32. Nxh6 {[%clk 0:00:10]}
32... Rg5 {[%clk 0:00:13]} 33. Nf5 {[%clk 0:00:07]} 33... Rxh5 {[%clk 0:00:13]}
34. g4 {[%clk 0:00:06.3]} 34... Rg5 {[%clk 0:00:13.3]} 35. Re4 {[%clk
0:00:03.1]} 35... Nd6 {[%clk 0:00:13.6]} 36. Nxd6+ {[%clk 0:00:03.5]} 36... Rxd6
{[%clk 0:00:13.3]} 37. Rf1 {[%clk 0:00:02.9]} 37... Rd8 {[%clk 0:00:13.3]} 38.
Nc3 {[%clk 0:00:03.4]} 38... Rdg8 {[%clk 0:00:12.3]} 0-1

[Event "Early-Titled-Tuesday-Blitz-August-29-2023"]
[Site "Chess.com"]
[Date "2023.08.29"]
[Round "11"]
[White "Actuary44"]
[Black "skkeyan1309"]
[Result "1-0"]
[WhiteElo "2547"]
[BlackElo "2718"]
[TimeControl "180+1"]
[EndTime "10:03:52 PDT"]
[Termination "Actuary44 won by checkmate"]

1. e4 {[%clk 0:03:00.9]} 1... c5 {[%clk 0:02:46.3]} 2. d4 {[%clk 0:03:01]} 2...
cxd4 {[%clk 0:02:46]} 3. c3 {[%clk 0:03:01.6]} 3... Nf6 {[%clk 0:02:45.9]} 4.
Bd3 {[%clk 0:03:01.3]} 4... e5 {[%clk 0:02:36.5]} 5. cxd4 {[%clk 0:02:59.3]}
5... Bb4+ {[%clk 0:02:12.1]} 6. Nc3 {[%clk 0:02:58.2]} 6... exd4 {[%clk
0:02:11.2]} 7. a3 {[%clk 0:02:57.6]} 7... Qa5 {[%clk 0:01:54.2]} 8. axb4 {[%clk
0:02:54.1]} 8... Qxa1 {[%clk 0:01:54]} 9. Nb5 {[%clk 0:02:53.7]} 9... O-O {[%clk
0:01:42.2]} 10. Nc7 {[%clk 0:02:53.2]} 10... Nc6 {[%clk 0:01:19.7]} 11. Nxa8
{[%clk 0:02:43.9]} 11... d5 {[%clk 0:01:17]} 12. e5 {[%clk 0:02:32.3]} 12... Bg4
{[%clk 0:01:01.7]} 13. f3 {[%clk 0:02:29.3]} 13... Nxe5 {[%clk 0:00:59.4]} 14.
Ne2 {[%clk 0:02:27.8]} 14... Rxa8 {[%clk 0:00:18.8]} 15. fxg4 {[%clk 0:02:26.2]}
15... Nfxg4 {[%clk 0:00:14.9]} 16. O-O {[%clk 0:02:22.3]} 16... Ne3 {[%clk
0:00:12.4]} 17. Bxe3 {[%clk 0:02:20.4]} 17... Qxd1 {[%clk 0:00:13.3]} 18. Rxd1
{[%clk 0:02:20.8]} 18... dxe3 {[%clk 0:00:13.6]} 19. Bf5 {[%clk 0:02:08.1]}
19... Rd8 {[%clk 0:00:13.1]} 20. Be4 {[%clk 0:02:08.2]} 20... Nc4 {[%clk
0:00:09.3]} 21. Rxd5 {[%clk 0:02:06.3]} 21... Re8 {[%clk 0:00:07.5]} 22. Rd4
{[%clk 0:01:59.6]} 22... Nxb2 {[%clk 0:00:05.7]} 23. Bxb7 {[%clk 0:01:59.5]}
23... g6 {[%clk 0:00:04.9]} 24. Re4 {[%clk 0:01:50.2]} 24... Rb8 {[%clk
0:00:04.1]} 25. Bd5 {[%clk 0:01:48.1]} 25... Nd3 {[%clk 0:00:04.6]} 26. Rxe3
{[%clk 0:01:44.9]} 26... Nxb4 {[%clk 0:00:05]} 27. Bc4 {[%clk 0:01:43.3]} 27...
Nc6 {[%clk 0:00:04.5]} 28. h4 {[%clk 0:01:36.7]} 28... Kg7 {[%clk 0:00:03.9]}
29. Bd5 {[%clk 0:01:31.8]} 29... Nb4 {[%clk 0:00:02.7]} 30. Bc4 {[%clk
0:01:25.9]} 30... Nc6 {[%clk 0:00:02.6]} 31. Nf4 {[%clk 0:01:24.9]} 31... Nd4
{[%clk 0:00:02.6]} 32. Re7 {[%clk 0:01:23.6]} 32... Nf5 {[%clk 0:00:02.8]} 33.
Rxf7+ {[%clk 0:01:23.7]} 33... Kh6 {[%clk 0:00:03.6]} 34. h5 {[%clk 0:01:16.9]}
34... Kg5 {[%clk 0:00:03.8]} 35. hxg6 {[%clk 0:01:01]} 35... Kxf4 {[%clk
0:00:03.9]} 36. gxh7 {[%clk 0:01:01.5]} 36... Rh8 {[%clk 0:00:04]} 37. Be6
{[%clk 0:01:00.8]} 37... Kg5 {[%clk 0:00:03.4]} 38. Bxf5 {[%clk 0:01:01.2]}
38... a5 {[%clk 0:00:04]} 39. Bc2 {[%clk 0:01:00.2]} 39... Kh6 {[%clk
0:00:03.3]} 40. Ra7 {[%clk 0:00:59.2]} 40... a4 {[%clk 0:00:03.1]} 41. Rxa4
{[%clk 0:00:58.6]} 41... Kg5 {[%clk 0:00:02.7]} 42. Ra6 {[%clk 0:00:56.9]} 42...
Kh5 {[%clk 0:00:02.5]} 43. Kh2 {[%clk 0:00:50.6]} 43... Kg5 {[%clk 0:00:03]} 44.
Rg6+ {[%clk 0:00:49.7]} 44... Kh5 {[%clk 0:00:03.3]} 45. Rg8 {[%clk 0:00:49.1]}
45... Rxh7 {[%clk 0:00:01.6]} 46. Bxh7 {[%clk 0:00:47.6]} 46... Kh6 {[%clk
0:00:02.5]} 47. Bd3 {[%clk 0:00:47.2]} 47... Kh5 {[%clk 0:00:03]} 48. g4+ {[%clk
0:00:47]} 48... Kh4 {[%clk 0:00:03.4]} 49. g5 {[%clk 0:00:46.7]} 49... Kh5
{[%clk 0:00:03.8]} 50. g6 {[%clk 0:00:35]} 50... Kh6 {[%clk 0:00:03.9]} 51. g7
{[%clk 0:00:35]} 51... Kg5 {[%clk 0:00:04.1]} 52. Rf8 {[%clk 0:00:33.3]} 52...
Kh6 {[%clk 0:00:04.1]} 53. g8=Q {[%clk 0:00:32.5]} 53... Kh5 {[%clk 0:00:04.6]}
54. Qg6+ {[%clk 0:00:32.7]} 54... Kh4 {[%clk 0:00:04.9]} 55. Rf4# {[%clk
0:00:33.3]} 1-0

[Event "Early-Titled-Tuesday-Blitz-August-29-2023"]
[Site "Chess.com"]
[Date "2023.08.29"]
[Round "11"]
[White "ViktoriyaTarasova"]
[Black "GeorgiosSouleidis"]
[Result "1/2-1/2"]
[WhiteElo "2431"]
[BlackElo "2557"]
[TimeControl "180+1"]
[EndTime "10:03:52 PDT"]
[Termination "Game drawn by repetition"]

1. d4 {[%clk 0:02:52.3]} 1... Nf6 {[%clk 0:02:59.7]} 2. c4 {[%clk 0:02:50.5]}
2... g6 {[%clk 0:03:00.2]} 3. Nc3 {[%clk 0:02:50.5]} 3... Bg7 {[%clk 0:03:00.8]}
4. e4 {[%clk 0:02:50.3]} 4... d6 {[%clk 0:03:01.5]} 5. h3 {[%clk 0:02:50.9]}
5... O-O {[%clk 0:03:02.1]} 6. Be3 {[%clk 0:02:49.5]} 6... Nbd7 {[%clk
0:03:01.6]} 7. Be2 {[%clk 0:02:47.9]} 7... c5 {[%clk 0:03:02]} 8. d5 {[%clk
0:02:48.2]} 8... b5 {[%clk 0:03:01.5]} 9. cxb5 {[%clk 0:02:47.5]} 9... a6 {[%clk
0:03:02.1]} 10. a4 {[%clk 0:02:48.2]} 10... Qa5 {[%clk 0:03:01.1]} 11. Bd2
{[%clk 0:02:48]} 11... Qb6 {[%clk 0:03:01.1]} 12. Nf3 {[%clk 0:02:41.6]} 12...
axb5 {[%clk 0:02:58.1]} 13. Bxb5 {[%clk 0:02:41.2]} 13... Ba6 {[%clk 0:02:54.9]}
14. O-O {[%clk 0:02:25.5]} 14... Rfb8 {[%clk 0:02:42.7]} 15. Qc2 {[%clk
0:02:21.4]} 15... Bxb5 {[%clk 0:02:22.3]} 16. Nxb5 {[%clk 0:02:19.3]} 16... Ne8
{[%clk 0:02:17.5]} 17. Bc3 {[%clk 0:02:19.1]} 17... Bh6 {[%clk 0:02:05.5]} 18.
e5 {[%clk 0:02:15]} 18... Nc7 {[%clk 0:02:01]} 19. Nxc7 {[%clk 0:02:01.5]} 19...
Qxc7 {[%clk 0:02:01.9]} 20. e6 {[%clk 0:02:00.8]} 20... fxe6 {[%clk 0:02:00.7]}
21. dxe6 {[%clk 0:01:51]} 21... Nf8 {[%clk 0:02:00.9]} 22. Qe4 {[%clk
0:01:37.7]} 22... Qb7 {[%clk 0:01:49.6]} 23. Qg4 {[%clk 0:01:21.8]} 23... Qd5
{[%clk 0:01:41.9]} 24. Rfe1 {[%clk 0:01:21.4]} 24... Bg7 {[%clk 0:01:32.8]} 25.
Ng5 {[%clk 0:00:59.3]} 25... Qf5 {[%clk 0:01:17.1]} 26. Qg3 {[%clk 0:00:49.4]}
26... Bxc3 {[%clk 0:01:10.6]} 27. bxc3 {[%clk 0:00:48.1]} 27... Ra5 {[%clk
0:00:44.1]} 28. Nf7 {[%clk 0:00:46.2]} 28... Qf6 {[%clk 0:00:39.7]} 29. Nxd6
{[%clk 0:00:20]} 29... exd6 {[%clk 0:00:39.7]} 30. e7 {[%clk 0:00:20.2]} 30...
Re8 {[%clk 0:00:36.4]} 31. exf8=Q+ {[%clk 0:00:18.5]} 31... Rxf8 {[%clk
0:00:37.3]} 32. Re2 {[%clk 0:00:11.7]} 32... d5 {[%clk 0:00:30.7]} 33. Rae1
{[%clk 0:00:11.6]} 33... Ra6 {[%clk 0:00:27.9]} 34. Qd3 {[%clk 0:00:09.7]} 34...
Rd6 {[%clk 0:00:26]} 35. a5 {[%clk 0:00:09.7]} 35... d4 {[%clk 0:00:25.7]} 36.
cxd4 {[%clk 0:00:08.2]} 36... Rxd4 {[%clk 0:00:24.1]} 37. Qb3+ {[%clk
0:00:06.3]} 37... c4 {[%clk 0:00:24.6]} 38. Qc3 {[%clk 0:00:04.6]} 38... Rf4
{[%clk 0:00:15.9]} 39. Qxf6 {[%clk 0:00:04.2]} 39... R8xf6 {[%clk 0:00:16.8]}
40. Rc2 {[%clk 0:00:04.2]} 40... Ra6 {[%clk 0:00:16.3]} 41. Rec1 {[%clk
0:00:04.8]} 41... Rxa5 {[%clk 0:00:13]} 42. Rxc4 {[%clk 0:00:05.1]} 42... Rxc4
{[%clk 0:00:12.9]} 43. Rxc4 {[%clk 0:00:05.8]} 43... Ra1+ {[%clk 0:00:13.4]} 44.
Kh2 {[%clk 0:00:06.1]} 44... Ra7 {[%clk 0:00:13.3]} 45. Rf4 {[%clk 0:00:06.5]}
45... Kg7 {[%clk 0:00:13.6]} 46. Rf3 {[%clk 0:00:07.2]} 46... Rb7 {[%clk
0:00:14.1]} 47. Kg3 {[%clk 0:00:07.8]} 47... Rc7 {[%clk 0:00:14.6]} 48. h4
{[%clk 0:00:08.5]} 48... Rb7 {[%clk 0:00:14.8]} 49. Kh3 {[%clk 0:00:09.1]} 49...
Rc7 {[%clk 0:00:12.9]} 50. Kg3 {[%clk 0:00:09.7]} 50... Rd7 {[%clk 0:00:13.4]}
51. Kh3 {[%clk 0:00:10.2]} 51... Rc7 {[%clk 0:00:13.9]} 52. Kg3 {[%clk
0:00:10.8]} 1/2-1/2

[Event "Early-Titled-Tuesday-Blitz-August-29-2023"]
[Site "Chess.com"]
[Date "2023.08.29"]
[Round "11"]
[White "jasrom"]
[Black "Mesa_1"]
[Result "0-1"]
[WhiteElo "2407"]
[BlackElo "2561"]
[TimeControl "180+1"]
[EndTime "10:03:55 PDT"]
[Termination "Mesa_1 won on time"]

1. e4 {[%clk 0:02:52.6]} 1... d6 {[%clk 0:03:00.9]} 2. d4 {[%clk 0:02:52]} 2...
Nf6 {[%clk 0:03:01.6]} 3. Nc3 {[%clk 0:02:52.5]} 3... Nc6 {[%clk 0:03:02.3]} 4.
h3 {[%clk 0:02:40.4]} 4... g6 {[%clk 0:03:02.8]} 5. Nf3 {[%clk 0:02:40.3]} 5...
Bg7 {[%clk 0:03:03.5]} 6. Be2 {[%clk 0:02:40.7]} 6... O-O {[%clk 0:03:04.1]} 7.
O-O {[%clk 0:02:40.2]} 7... a6 {[%clk 0:03:03.9]} 8. a4 {[%clk 0:02:37.7]} 8...
e5 {[%clk 0:03:00.2]} 9. dxe5 {[%clk 0:02:32.3]} 9... dxe5 {[%clk 0:03:01.1]}
10. Qxd8 {[%clk 0:02:32.5]} 10... Rxd8 {[%clk 0:03:02]} 11. Bg5 {[%clk
0:02:31.9]} 11... Be6 {[%clk 0:02:59.9]} 12. Rfd1 {[%clk 0:02:10.4]} 12... Nd4
{[%clk 0:02:59.8]} 13. Nxe5 {[%clk 0:01:29.8]} 13... Nxe2+ {[%clk 0:02:58.4]}
14. Nxe2 {[%clk 0:01:26.8]} 14... h6 {[%clk 0:02:59.3]} 15. Bxf6 {[%clk
0:01:21.2]} 15... Bxf6 {[%clk 0:02:58.9]} 16. Nd3 {[%clk 0:01:21]} 16... Bc4
{[%clk 0:02:56.7]} 17. Rab1 {[%clk 0:01:11.4]} 17... Rd7 {[%clk 0:02:43.5]} 18.
b3 {[%clk 0:01:08.7]} 18... Be6 {[%clk 0:02:37.3]} 19. Nc5 {[%clk 0:01:07.2]}
19... Rxd1+ {[%clk 0:02:33.7]} 20. Rxd1 {[%clk 0:01:08.1]} 20... Bc8 {[%clk
0:02:34.1]} 21. f4 {[%clk 0:01:02.9]} 21... b6 {[%clk 0:02:33.4]} 22. Nd7 {[%clk
0:00:50]} 22... Be7 {[%clk 0:02:26.7]} 23. Ne5 {[%clk 0:00:46.4]} 23... Bd6
{[%clk 0:02:20.8]} 24. Nc4 {[%clk 0:00:45]} 24... Bc5+ {[%clk 0:02:20.8]} 25.
Kh2 {[%clk 0:00:44.4]} 25... Be6 {[%clk 0:02:20.4]} 26. Ne5 {[%clk 0:00:40.6]}
26... Bd6 {[%clk 0:02:11.6]} 27. Nd3 {[%clk 0:00:38.9]} 27... Rd8 {[%clk
0:02:07.6]} 28. g3 {[%clk 0:00:29.5]} 28... Kf8 {[%clk 0:02:06.9]} 29. Kg2
{[%clk 0:00:29.6]} 29... h5 {[%clk 0:02:03.9]} 30. Nd4 {[%clk 0:00:24.4]} 30...
Bd7 {[%clk 0:02:03.6]} 31. e5 {[%clk 0:00:17.1]} 31... Be7 {[%clk 0:02:03.7]}
32. c3 {[%clk 0:00:14.6]} 32... c5 {[%clk 0:02:04.1]} 33. Nf3 {[%clk 0:00:12.3]}
33... c4 {[%clk 0:01:59.3]} 34. bxc4 {[%clk 0:00:11]} 34... Bxa4 {[%clk
0:01:58.6]} 35. Rd2 {[%clk 0:00:11.4]} 35... Bc6 {[%clk 0:01:53.6]} 36. Kf2
{[%clk 0:00:11.6]} 36... a5 {[%clk 0:01:53.2]} 37. Nd4 {[%clk 0:00:11.7]} 37...
Be4 {[%clk 0:01:50.7]} 38. Ke3 {[%clk 0:00:10.9]} 38... Bb7 {[%clk 0:01:49.4]}
39. Nb5 {[%clk 0:00:09.7]} 39... Rc8 {[%clk 0:01:44]} 40. Nb2 {[%clk 0:00:05.6]}
40... Bc5+ {[%clk 0:01:38.1]} 41. Ke2 {[%clk 0:00:05.4]} 41... Ba6 {[%clk
0:01:39]} 42. Nd6 {[%clk 0:00:05.1]} 42... Rc6 {[%clk 0:01:35.4]} 43. Ne4 {[%clk
0:00:04.6]} 43... Be7 {[%clk 0:01:34]} 44. Kd3 {[%clk 0:00:05]} 44... a4 {[%clk
0:01:31.1]} 45. Nxa4 {[%clk 0:00:03.7]} 45... Rxc4 {[%clk 0:01:29.3]} 46. Nb2
{[%clk 0:00:03.9]} 46... Rc6+ {[%clk 0:01:10]} 47. Ke3 {[%clk 0:00:04.3]} 47...
Bc8 {[%clk 0:01:10.9]} 48. c4 {[%clk 0:00:04.1]} 48... Bxh3 {[%clk 0:01:10.2]}
49. Kd4 {[%clk 0:00:04]} 49... Be6 {[%clk 0:01:10.6]} 50. Nc3 {[%clk 0:00:03.9]}
50... Bc5+ {[%clk 0:01:08.1]} 51. Ke4 {[%clk 0:00:03.5]} 51... Bb4 {[%clk
0:01:08.5]} 52. Rd3 {[%clk 0:00:02.6]} 52... Bxc4 {[%clk 0:01:05.1]} 53. Nd5
{[%clk 0:00:02.5]} 53... Bxd3+ {[%clk 0:01:04.5]} 54. Kxd3 {[%clk 0:00:02.8]}
54... Be7 {[%clk 0:01:04.7]} 55. Nc4 {[%clk 0:00:02.4]} 55... b5 {[%clk
0:01:03.9]} 56. Na5 {[%clk 0:00:02.1]} 56... Rc1 {[%clk 0:01:01.5]} 57. Nb3
{[%clk 0:00:01.4]} 57... Rg1 {[%clk 0:00:59.3]} 58. Ke4 {[%clk 0:00:01.6]} 58...
Rxg3 {[%clk 0:00:58.8]} 59. Nc5 {[%clk 0:00:01.9]} 59... Bxc5 {[%clk 0:00:58.1]}
0-1

[Event "Early-Titled-Tuesday-Blitz-August-29-2023"]
[Site "Chess.com"]
[Date "2023.08.29"]
[Round "11"]
[White "realburq"]
[Black "Alphafischer2019"]
[Result "0-1"]
[WhiteElo "2388"]
[BlackElo "2509"]
[TimeControl "180+1"]
[EndTime "10:03:55 PDT"]
[Termination "Alphafischer2019 won by resignation"]

1. e4 {[%clk 0:03:00.9]} 1... c5 {[%clk 0:02:56.5]} 2. Nc3 {[%clk 0:03:01.1]}
2... Nc6 {[%clk 0:02:56.1]} 3. Bc4 {[%clk 0:03:01.8]} 3... g6 {[%clk 0:02:55.5]}
4. a3 {[%clk 0:02:58.9]} 4... Bg7 {[%clk 0:02:55.4]} 5. Nge2 {[%clk 0:02:59.3]}
5... e6 {[%clk 0:02:53.3]} 6. Ba2 {[%clk 0:02:58.4]} 6... Nge7 {[%clk
0:02:52.9]} 7. d3 {[%clk 0:02:58.2]} 7... d5 {[%clk 0:02:53]} 8. Bg5 {[%clk
0:02:55.6]} 8... h6 {[%clk 0:02:49.5]} 9. Bxe7 {[%clk 0:02:55.2]} 9... Nxe7
{[%clk 0:02:49.2]} 10. exd5 {[%clk 0:02:46.2]} 10... exd5 {[%clk 0:02:48.8]} 11.
Nf4 {[%clk 0:02:46.8]} 11... d4 {[%clk 0:02:42.9]} 12. Ne4 {[%clk 0:02:44.9]}
12... Qc7 {[%clk 0:02:38]} 13. Qf3 {[%clk 0:02:29.2]} 13... O-O {[%clk
0:02:35.2]} 14. O-O-O {[%clk 0:02:23.6]} 14... Kh7 {[%clk 0:01:57.6]} 15. g4
{[%clk 0:02:15.3]} 15... f5 {[%clk 0:01:42.3]} 16. Ng5+ {[%clk 0:01:21.6]} 16...
hxg5 {[%clk 0:01:36.6]} 17. Qh3+ {[%clk 0:01:21.7]} 17... Bh6 {[%clk 0:01:37.2]}
18. Nd5 {[%clk 0:01:16]} 18... Nxd5 {[%clk 0:01:36.4]} 19. Bxd5 {[%clk
0:01:15.8]} 19... fxg4 {[%clk 0:01:37]} 20. Qg3 {[%clk 0:01:15.3]} 20... Qf4+
{[%clk 0:01:36.5]} 21. Kb1 {[%clk 0:01:14.8]} 21... Bf5 {[%clk 0:01:28.8]} 22.
Rde1 {[%clk 0:01:09.6]} 22... Rae8 {[%clk 0:01:28.4]} 23. Bxb7 {[%clk
0:01:08.6]} 23... Bg7 {[%clk 0:01:22.2]} 24. Bc6 {[%clk 0:01:08]} 24... Rxe1+
{[%clk 0:01:20.5]} 25. Rxe1 {[%clk 0:01:08.9]} 25... Rc8 {[%clk 0:01:16.5]} 26.
Bd5 {[%clk 0:01:05.4]} 26... Bf6 {[%clk 0:01:07.9]} 27. Qg1 {[%clk 0:00:53.2]}
27... Rb8 {[%clk 0:00:59.9]} 28. Re2 {[%clk 0:00:43]} 28... Qd6 {[%clk
0:00:54.6]} 29. Bc4 {[%clk 0:00:42.1]} 29... Qb6 {[%clk 0:00:52.5]} 30. b3
{[%clk 0:00:41.6]} 30... a5 {[%clk 0:00:52.3]} 31. a4 {[%clk 0:00:41]} 31... Qd6
{[%clk 0:00:48]} 32. Qe1 {[%clk 0:00:36]} 32... Qc7 {[%clk 0:00:45.8]} 33. Re6
{[%clk 0:00:34.8]} 33... Bxe6 {[%clk 0:00:44.7]} 34. Qxe6 {[%clk 0:00:35.7]}
34... Kg7 {[%clk 0:00:43]} 35. Qxg4 {[%clk 0:00:35.2]} 35... Rd8 {[%clk
0:00:41.2]} 36. Qe4 {[%clk 0:00:28.7]} 36... Qxh2 {[%clk 0:00:38.5]} 37. Qb7+
{[%clk 0:00:27.5]} 37... Kh6 {[%clk 0:00:38.9]} 38. Kb2 {[%clk 0:00:26.7]} 38...
Qxf2 {[%clk 0:00:37.7]} 39. Qc7 {[%clk 0:00:23.7]} 39... g4 {[%clk 0:00:34.6]}
40. Bd5 {[%clk 0:00:17.7]} 40... Rxd5 {[%clk 0:00:32]} 41. Qc8 {[%clk
0:00:14.8]} 41... Qf5 {[%clk 0:00:29.5]} 42. Qf8+ {[%clk 0:00:14.6]} 42... Bg7
{[%clk 0:00:29.1]} 43. Qb8 {[%clk 0:00:13.5]} 43... Re5 {[%clk 0:00:29.2]} 44.
Qb7 {[%clk 0:00:13.3]} 44... Qf3 {[%clk 0:00:29.4]} 45. Qb8 {[%clk 0:00:13.2]}
45... g3 {[%clk 0:00:29.4]} 46. Qd8 {[%clk 0:00:13.8]} 46... Qf6 {[%clk
0:00:26.6]} 47. Qa8 {[%clk 0:00:13.5]} 47... Re2 {[%clk 0:00:27.1]} 48. Qh1+
{[%clk 0:00:13.7]} 48... Rh2 {[%clk 0:00:27.6]} 49. Qc1+ {[%clk 0:00:14.5]}
49... Qg5 {[%clk 0:00:27.5]} 50. Qe1 {[%clk 0:00:15]} 50... g2 {[%clk
0:00:27.5]} 51. Ka2 {[%clk 0:00:14.9]} 51... g1=Q {[%clk 0:00:27.2]} 52. Ka3
{[%clk 0:00:10.8]} 52... Qxe1 {[%clk 0:00:25.2]} 53. c4 {[%clk 0:00:10.4]} 0-1